[Event "Live Chess"]
[Site "Chess.com"]
[Date "2021.02.28"]
[Round "-"]
[White "Hamilton, Stephen C"]
[Black "Jackson, Robert"]
[Result "0-1"]
[BlackElo "1630"]
[CurrentPosition "4r1k1/p2q2pp/1p6/8/3b1n2/PP3P1P/2R2P2/3Q1RK1 w - -"]
[ECO "C02"]
[ECOUrl "https://www.chess.com/openings/French-Defense-Advance-Variation-3...c5-4.c3"]
[EndDate "2021.02.28"]
[EndTime "14:32:04"]
[Link "https://www.chess.com/live/game/8259912189"]
[StartTime "14:04:47"]
[Termination "rjproton won by resignation"]
[TimeControl "1500+10"]
[Timezone "UTC"]
[UTCDate "2021.02.28"]
[UTCTime "14:04:47"]
[WhiteElo "1637"]

1. e4 { [%clk 0:25:10] } 1... e6 { [%clk 0:25:10] } 2. d4 { [%clk 0:24:54] } 2... d5 { [%clk 0:25:17.8] } 3. e5 { [%clk 0:25:02.7] } 3... c5 { [%clk 0:25:23] } 4. c3 { [%clk 0:25:11.4] } 4... Ne7 { [%clk 0:25:31.1] } 5. Nf3 { [%clk 0:25:12.5] } 5... Nec6 { [%clk 0:25:37.6] } 6. Bd3 { [%clk 0:25:16.3] } 6... b6 { [%clk 0:25:23.5] } 7. O-O { [%clk 0:25:24.3] } 7... Ba6 { [%clk 0:24:56.5] } 8. a3 { [%clk 0:25:20.1] } 8... Bxd3 { [%clk 0:25:03.2] } 9. Qxd3 { [%clk 0:25:29.1] } 9... Be7 { [%clk 0:24:35] } 10. Be3 { [%clk 0:25:34.1] } 10... Nd7 { [%clk 0:23:44.3] } 11. b3 { [%clk 0:25:03.2] } 11... O-O { [%clk 0:23:42.3] } 12. Nbd2 { [%clk 0:25:06.8] } 12... f6 { [%clk 0:23:13] } 13. exf6 { [%clk 0:24:48.6] } 13... Bxf6 { [%clk 0:22:28.5] } 14. Rac1 { [%clk 0:24:48.1] } 14... e5 { [%clk 0:20:14] } 15. dxe5 { [%clk 0:24:51.4] } 15... Ndxe5 { [%clk 0:20:14.5] } 16. Nxe5 { [%clk 0:23:34.8] } 16... Nxe5 { [%clk 0:20:02.7] } 17. Qe2 { [%clk 0:22:56.9] } 17... Qd7 { [%clk 0:19:49.1] } 18. h3 { [%clk 0:22:58.5] } 18... Rae8 { [%clk 0:19:55.4] } 19. Qd1 { [%clk 0:19:23.5] } 19... Nd3 { [%clk 0:18:09.1] } 20. Rc2 { [%clk 0:19:20.3] } 20... d4 { [%clk 0:18:11.3] } 21. cxd4 { [%clk 0:18:54.8] } 21... cxd4 { [%clk 0:18:10.5] } 22. Bxd4 { [%clk 0:15:50.6] } 22... Bxd4 { [%clk 0:16:35.6] } 23. Nf3 { [%clk 0:15:48.5] } 23... Rxf3 { [%clk 0:16:05.7] } 24. gxf3 { [%clk 0:15:55.2] } 24... Nf4 { [%clk 0:15:41.5] } 0-1

[Event "Live Chess"]
[Site "Chess.com"]
[Date "2021.02.28"]
[Round "-"]
[White "Chalmers, Martin M"]
[Black "McPheator, Gary"]
[Result "0-1"]
[BlackElo "1423"]
[CurrentPosition "rk6/p7/Qp1p4/3Ppqb1/2N1K3/1P4pb/R2B4/8 w - -"]
[ECO "A40"]
[ECOUrl "https://www.chess.com/openings/Queens-Pawn-Opening-Horwitz-Defense-2.Bf4"]
[EndDate "2021.02.28"]
[EndTime "15:28:47"]
[Link "https://www.chess.com/live/game/8262897331"]
[StartTime "14:54:20"]
[Termination "Gary753 won by checkmate"]
[TimeControl "1500+10"]
[Timezone "UTC"]
[UTCDate "2021.02.28"]
[UTCTime "14:54:20"]
[WhiteElo "1370"]

1. d4 { [%clk 0:25:10] } 1... e6 { [%clk 0:25:10] } 2. Bf4 { [%clk 0:25:12.3] } 2... Nf6 { [%clk 0:25:12.2] } 3. e3 { [%clk 0:25:13.9] } 3... c5 { [%clk 0:24:40.9] } 4. c3 { [%clk 0:24:44.6] } 4... cxd4 { [%clk 0:24:46.3] } 5. exd4 { [%clk 0:24:36.3] } 5... Qb6 { [%clk 0:24:26.6] } 6. Qc2 { [%clk 0:24:00.6] } 6... Be7 { [%clk 0:24:32.8] } 7. Nf3 { [%clk 0:24:07.8] } 7... d6 { [%clk 0:24:28.3] } 8. Nbd2 { [%clk 0:24:14.9] } 8... Bd7 { [%clk 0:24:34.9] } 9. Bd3 { [%clk 0:24:13.8] } 9... Nc6 { [%clk 0:24:36.9] } 10. O-O { [%clk 0:24:21.2] } 10... O-O-O { [%clk 0:24:36.1] } 11. Nc4 { [%clk 0:24:11] } 11... Qc7 { [%clk 0:24:35.5] } 12. b4 { [%clk 0:23:46.8] } 12... Nh5 { [%clk 0:24:23.4] } 13. Be3 { [%clk 0:23:35] } 13... h6 { [%clk 0:24:27] } 14. b5 { [%clk 0:23:29.4] } 14... Na5 { [%clk 0:24:21.2] } 15. Ncd2 { [%clk 0:22:11.1] } 15... g5 { [%clk 0:23:25.1] } 16. d5 { [%clk 0:21:47.1] } 16... b6 { [%clk 0:23:06] } 17. Nb3 { [%clk 0:19:46.7] } 17... Nxb3 { [%clk 0:22:49] } 18. axb3 { [%clk 0:19:50.6] } 18... e5 { [%clk 0:22:51.1] } 19. Be2 { [%clk 0:19:28.6] } 19... Nf4 { [%clk 0:22:41.2] } 20. Ra2 { [%clk 0:19:20.2] } 20... Kb7 { [%clk 0:22:48.8] } 21. Rfa1 { [%clk 0:19:06.8] } 21... Ra8 { [%clk 0:22:56.3] } 22. Ra6 { [%clk 0:18:23.7] } 22... g4 { [%clk 0:22:49.8] } 23. Ne1 { [%clk 0:17:37.6] } 23... Nxe2+ { [%clk 0:22:47.1] } 24. Qxe2 { [%clk 0:17:43.9] } 24... Qxc3 { [%clk 0:22:53.6] } 25. Qa2 { [%clk 0:15:54.2] } 25... Qxa1 { [%clk 0:19:46.9] } 26. Qxa1 { [%clk 0:15:53.4] } 26... Bxb5 { [%clk 0:19:55.1] } 27. Ra2 { [%clk 0:15:29.8] } 27... f5 { [%clk 0:20:01.9] } 28. Nc2 { [%clk 0:15:12.5] } 28... h5 { [%clk 0:19:50.3] } 29. Na3 { [%clk 0:14:51.2] } 29... Bd7 { [%clk 0:19:53.6] } 30. Nc4 { [%clk 0:14:38.5] } 30... f4 { [%clk 0:19:43.1] } 31. Bd2 { [%clk 0:14:38.5] } 31... h4 { [%clk 0:19:47.4] } 32. Qb2 { [%clk 0:13:00.7] } 32... g3 { [%clk 0:19:36.5] } 33. fxg3 { [%clk 0:12:41.7] } 33... hxg3 { [%clk 0:19:37.3] } 34. h3 { [%clk 0:12:48.1] } 34... f3 { [%clk 0:19:39.3] } 35. Qa3 { [%clk 0:12:13.6] } 35... f2+ { [%clk 0:19:24.4] } 36. Kf1 { [%clk 0:12:11.2] } 36... Rxh3 { [%clk 0:19:23.3] } 37. Qa6+ { [%clk 0:11:00.1] } 37... Kb8 { [%clk 0:19:27.5] } 38. gxh3 { [%clk 0:10:09.3] } 38... Bxh3+ { [%clk 0:19:33.8] } 39. Ke2 { [%clk 0:10:01.5] } 39... f1=Q+ { [%clk 0:19:40.2] } 40. Ke3 { [%clk 0:09:38] } 40... Bg5+ { [%clk 0:19:46.2] } 41. Ke4 { [%clk 0:09:40.1] } 41... Qf5# { [%clk 0:19:53.7] } 0-1

[Event "Live Chess"]
[Site "Chess.com"]
[Date "2021.02.28"]
[Round "-"]
[White "Smith, Bob"]
[Black "Murray, Euan"]
[Result "0-1"]
[BlackElo "1907"]
[CurrentPosition "2k3r1/1ppq4/p1p5/8/4Pp2/3P1b2/PPP1K3/6Q1 w - -"]
[ECO "C68"]
[ECOUrl "https://www.chess.com/openings/Ruy-Lopez-Opening-Morphy-Defense-Exchange-Kings-Bishop-Variation"]
[EndDate "2021.02.28"]
[EndTime "14:49:50"]
[Link "https://www.chess.com/live/game/8260463501"]
[StartTime "14:11:48"]
[Termination "Brooner_85 won by resignation"]
[TimeControl "1500+10"]
[Timezone "UTC"]
[UTCDate "2021.02.28"]
[UTCTime "14:11:48"]
[WhiteElo "1351"]

1. e4 { [%clk 0:25:10] } 1... e5 { [%clk 0:25:10] } 2. Nf3 { [%clk 0:25:16.8] } 2... Nc6 { [%clk 0:25:19.2] } 3. Bb5 { [%clk 0:25:24.7] } 3... a6 { [%clk 0:25:27.3] } 4. Bxc6 { [%clk 0:25:29.9] } 4... dxc6 { [%clk 0:25:36.6] } 5. O-O { [%clk 0:25:37.2] } 5... Bd6 { [%clk 0:25:44.8] } 6. Nc3 { [%clk 0:25:38.1] } 6... Bg4 { [%clk 0:25:48.3] } 7. h3 { [%clk 0:25:39.6] } 7... Bh5 { [%clk 0:25:46.5] } 8. d3 { [%clk 0:25:38.4] } 8... h6 { [%clk 0:25:10.4] } 9. Bd2 { [%clk 0:25:11.2] } 9... g5 { [%clk 0:24:44.3] } 10. Ne2 { [%clk 0:24:40.9] } 10... g4 { [%clk 0:24:44.5] } 11. Nh2 { [%clk 0:24:31.2] } 11... gxh3 { [%clk 0:24:46.5] } 12. g3 { [%clk 0:24:14.7] } 12... Qd7 { [%clk 0:24:36.9] } 13. f3 { [%clk 0:23:16] } 13... O-O-O { [%clk 0:24:43.6] } 14. Be3 { [%clk 0:22:09.9] } 14... Ne7 { [%clk 0:24:42.3] } 15. Kf2 { [%clk 0:21:21.5] } 15... Rdg8 { [%clk 0:24:43.6] } 16. Ke1 { [%clk 0:21:25.5] } 16... f5 { [%clk 0:24:45.8] } 17. Kd2 { [%clk 0:19:54.7] } 17... f4 { [%clk 0:24:39] } 18. Bf2 { [%clk 0:19:39] } 18... fxg3 { [%clk 0:24:22.1] } 19. Nxg3 { [%clk 0:19:34.7] } 19... Bf7 { [%clk 0:24:15.9] } 20. Kc1 { [%clk 0:19:23.7] } 20... h5 { [%clk 0:24:14.5] } 21. Rg1 { [%clk 0:17:41] } 21... h4 { [%clk 0:23:46] } 22. Ne2 { [%clk 0:17:38.7] } 22... Rg2 { [%clk 0:23:39.8] } 23. Rxg2 { [%clk 0:17:31.3] } 23... hxg2 { [%clk 0:23:48.8] } 24. Ng1 { [%clk 0:16:34.2] } 24... Ng6 { [%clk 0:23:26.9] } 25. Be3 { [%clk 0:13:34.4] } 25... Nf4 { [%clk 0:22:10.1] } 26. Bxf4 { [%clk 0:13:31.8] } 26... exf4 { [%clk 0:22:17.3] } 27. Qd2 { [%clk 0:12:05.8] } 27... Bc5 { [%clk 0:22:07.6] } 28. Qxg2 { [%clk 0:11:41.4] } 28... Rg8 { [%clk 0:22:16.2] } 29. Ng4 { [%clk 0:11:12.4] } 29... Be3+ { [%clk 0:20:38.2] } 30. Kd1 { [%clk 0:11:00.3] } 30... Be6 { [%clk 0:20:44.7] } 31. Qf1 { [%clk 0:10:26.1] } 31... Bxg4 { [%clk 0:20:41.5] } 32. Ke2 { [%clk 0:08:03.5] } 32... Bxg1 { [%clk 0:20:40.6] } 33. Qg2 { [%clk 0:06:39.2] } 33... h3 { [%clk 0:20:27.1] } 34. Qh1 { [%clk 0:04:51] } 34... h2 { [%clk 0:20:23.9] } 35. Rxg1 { [%clk 0:04:39] } 35... hxg1=Q { [%clk 0:20:30.5] } 36. Qxg1 { [%clk 0:04:47.6] } 36... Bxf3+ { [%clk 0:20:39.9] } 0-1

[Event "Live Chess"]
[Site "Chess.com"]
[Date "2021.02.28"]
[Round "-"]
[White "Robertson, David A"]
[Black "Paul, Rabindra"]
[Result "1-0"]
[BlackElo "1789"]
[CurrentPosition "8/7p/4k3/R3B3/4Pp2/3K1P2/6rP/8 b - -"]
[ECO "E44"]
[ECOUrl "https://www.chess.com/openings/Nimzo-Indian-Defense-St-Petersburg-Fischer-Variation-5...Ne4-6.Qc2"]
[EndDate "2021.02.28"]
[EndTime "12:37:42"]
[Link "https://www.chess.com/live/game/8250913951"]
[StartTime "11:36:19"]
[Termination "soxyboy1978 won by resignation"]
[TimeControl "1500+10"]
[Timezone "UTC"]
[UTCDate "2021.02.28"]
[UTCTime "11:36:19"]
[WhiteElo "1884"]

1. d4 { [%clk 0:25:10] } 1... Nf6 { [%clk 0:25:10] } 2. c4 { [%clk 0:24:54] } 2... e6 { [%clk 0:25:07.5] } 3. Nc3 { [%clk 0:24:56.1] } 3... Bb4 { [%clk 0:25:07.2] } 4. e3 { [%clk 0:25:03.7] } 4... b6 { [%clk 0:25:12.7] } 5. Ne2 { [%clk 0:24:53.6] } 5... Ne4 { [%clk 0:24:20.4] } 6. Qc2 { [%clk 0:24:22] } 6... f5 { [%clk 0:23:33.4] } 7. a3 { [%clk 0:22:35.7] } 7... Bxc3+ { [%clk 0:22:31.5] } 8. Nxc3 { [%clk 0:22:42.9] } 8... Bb7 { [%clk 0:22:35.5] } 9. d5 { [%clk 0:19:16.7] } 9... Nxc3 { [%clk 0:19:58.2] } 10. Qxc3 { [%clk 0:19:23.7] } 10... O-O { [%clk 0:19:59.4] } 11. b3 { [%clk 0:17:38.7] } 11... Qf6 { [%clk 0:13:27.8] } 12. Qxf6 { [%clk 0:17:14.7] } 12... Rxf6 { [%clk 0:13:34.2] } 13. Be2 { [%clk 0:15:54.8] } 13... e5 { [%clk 0:13:12.4] } 14. Bb2 { [%clk 0:13:48.1] } 14... d6 { [%clk 0:13:18.2] } 15. O-O { [%clk 0:12:48.4] } 15... Nd7 { [%clk 0:12:56.2] } 16. b4 { [%clk 0:12:52.6] } 16... Re8 { [%clk 0:09:11.6] } 17. Rfd1 { [%clk 0:12:13.8] } 17... f4 { [%clk 0:08:55.2] } 18. e4 { [%clk 0:11:47.2] } 18... Bc8 { [%clk 0:07:45.4] } 19. Bg4 { [%clk 0:10:08.7] } 19... Nf8 { [%clk 0:07:41.6] } 20. Bxc8 { [%clk 0:10:02.5] } 20... Rxc8 { [%clk 0:07:49.9] } 21. c5 { [%clk 0:10:09.2] } 21... Nd7 { [%clk 0:07:46.2] } 22. cxd6 { [%clk 0:10:10.5] } 22... cxd6 { [%clk 0:07:54.4] } 23. Rac1 { [%clk 0:10:17] } 23... Rff8 { [%clk 0:08:03] } 24. Rc6 { [%clk 0:10:23.6] } 24... Nf6 { [%clk 0:07:45.1] } 25. f3 { [%clk 0:10:10.6] } 25... Rfd8 { [%clk 0:04:47.6] } 26. Rdc1 { [%clk 0:10:08] } 26... Rxc6 { [%clk 0:04:51.6] } 27. dxc6 { [%clk 0:08:00.5] } 27... Kf7 { [%clk 0:03:40.7] } 28. b5 { [%clk 0:07:45.7] } 28... Ke6 { [%clk 0:03:41.6] } 29. Kf2 { [%clk 0:07:29.3] } 29... Ne8 { [%clk 0:03:19.7] } 30. a4 { [%clk 0:07:09.5] } 30... Nc7 { [%clk 0:03:25.6] } 31. Rd1 { [%clk 0:05:48.9] } 31... a6 { [%clk 0:03:03.7] } 32. a5 { [%clk 0:05:27.3] } 32... Rb8 { [%clk 0:02:34.4] } 33. Ba3 { [%clk 0:04:47.1] } 33... Nxb5 { [%clk 0:02:25.4] } 34. c7 { [%clk 0:04:40.5] } 34... Nxc7 { [%clk 0:00:22.3] } 35. Rxd6+ { [%clk 0:04:47.6] } 35... Kf7 { [%clk 0:00:27] } 36. Rd7+ { [%clk 0:04:37.6] } 36... Kg6 { [%clk 0:00:35.3] } 37. Rxc7 { [%clk 0:04:33.1] } 37... bxa5 { [%clk 0:00:44] } 38. Rc6+ { [%clk 0:04:20.2] } 38... Kf7 { [%clk 0:00:44.4] } 39. Rxa6 { [%clk 0:04:21.7] } 39... Rb5 { [%clk 0:00:53.1] } 40. Ra7+ { [%clk 0:04:21.9] } 40... Kg6 { [%clk 0:01:01.2] } 41. Bf8 { [%clk 0:04:12.3] } 41... Rb2+ { [%clk 0:00:59.2] } 42. Kf1 { [%clk 0:04:16.2] } 42... Kf6 { [%clk 0:00:55.9] } 43. Bxg7+ { [%clk 0:04:19.1] } 43... Ke6 { [%clk 0:01:04.6] } 44. Rxa5 { [%clk 0:04:10.8] } 44... Rb1+ { [%clk 0:01:12.8] } 45. Kf2 { [%clk 0:04:16.9] } 45... Rb2+ { [%clk 0:01:22.1] } 46. Kf1 { [%clk 0:04:23.2] } 46... Rb1+ { [%clk 0:01:31.2] } 47. Ke2 { [%clk 0:04:31.3] } 47... Rb2+ { [%clk 0:01:40.3] } 48. Kd3 { [%clk 0:04:35.9] } 48... Rxg2 { [%clk 0:01:49.3] } 49. Bxe5 { [%clk 0:03:48] } 1-0

[Event "Live Chess"]
[Site "Chess.com"]
[Date "2021.02.28"]
[Round "-"]
[White "Brown, Steven A"]
[Black "McKay, Jonathan"]
[Result "0-1"]
[BlackElo "1964"]
[CurrentPosition "kr6/pp3p1B/2p5/3p4/N4P2/1P2P3/PQP1nP2/1K1q4 w - -"]
[ECO "A45"]
[ECOUrl "https://www.chess.com/openings/Indian-Game"]
[EndDate "2021.02.28"]
[EndTime "11:40:49"]
[Link "https://www.chess.com/live/game/8249061529"]
[StartTime "11:02:33"]
[Termination "dandytastic117 won by resignation"]
[TimeControl "1500+10"]
[Timezone "UTC"]
[UTCDate "2021.02.28"]
[UTCTime "11:02:33"]
[WhiteElo "1926"]

1. d4 { [%clk 0:25:10] } 1... Nf6 { [%clk 0:25:10] } 2. Bf4 { [%clk 0:24:59.4] } 2... g6 { [%clk 0:25:09.8] } 3. e3 { [%clk 0:25:01.5] } 3... Bg7 { [%clk 0:25:14.1] } 4. h4 { [%clk 0:25:09.8] } 4... d6 { [%clk 0:25:08.6] } 5. h5 { [%clk 0:25:16.3] } 5... Nxh5 { [%clk 0:25:14.6] } 6. Rxh5 { [%clk 0:25:23.8] } 6... gxh5 { [%clk 0:25:18] } 7. Qxh5 { [%clk 0:25:32.2] } 7... c6 { [%clk 0:24:05.3] } 8. Nc3 { [%clk 0:24:16.2] } 8... Nd7 { [%clk 0:23:48] } 9. Bc4 { [%clk 0:24:11.8] } 9... d5 { [%clk 0:23:39.7] } 10. Bd3 { [%clk 0:24:19.9] } 10... Nf6 { [%clk 0:22:38.3] } 11. Qh2 { [%clk 0:24:28.4] } 11... Bg4 { [%clk 0:21:03.4] } 12. Nf3 { [%clk 0:24:26.7] } 12... Bxf3 { [%clk 0:20:18.8] } 13. gxf3 { [%clk 0:24:32.8] } 13... Qd7 { [%clk 0:19:00.5] } 14. O-O-O { [%clk 0:24:20.4] } 14... O-O-O { [%clk 0:18:18.9] } 15. Na4 { [%clk 0:24:26.1] } 15... Qe8 { [%clk 0:16:28.7] } 16. Kb1 { [%clk 0:24:26] } 16... Nd7 { [%clk 0:15:55.6] } 17. Bc7 { [%clk 0:24:30.2] } 17... e5 { [%clk 0:15:52.8] } 18. Bxd8 { [%clk 0:24:26.8] } 18... Qxd8 { [%clk 0:16:02.7] } 19. Rg1 { [%clk 0:23:56.3] } 19... Bf6 { [%clk 0:14:59] } 20. dxe5 { [%clk 0:23:38.8] } 20... Nxe5 { [%clk 0:14:32.1] } 21. Bf5+ { [%clk 0:23:43.4] } 21... Kb8 { [%clk 0:14:26.1] } 22. Nc5 { [%clk 0:23:39.3] } 22... Ka8 { [%clk 0:14:16.4] } 23. f4 { [%clk 0:19:59.3] } 23... Nc4 { [%clk 0:11:19.1] } 24. b3 { [%clk 0:15:40.5] } 24... Qa5 { [%clk 0:10:02.7] } 25. Na4 { [%clk 0:14:19.8] } 25... Nd2+ { [%clk 0:09:47.6] } 26. Kc1 { [%clk 0:14:25.7] } 26... Nf3 { [%clk 0:09:46.3] } 27. Qh6 { [%clk 0:13:44.1] } 27... Qd2+ { [%clk 0:09:05] } 28. Kb1 { [%clk 0:13:50.1] } 28... Nxg1 { [%clk 0:08:54.2] } 29. Qxf6 { [%clk 0:13:55.5] } 29... Rb8 { [%clk 0:08:38.7] } 30. Bxh7 { [%clk 0:13:46.1] } 30... Ne2 { [%clk 0:08:39.2] } 31. Qb2 { [%clk 0:13:39.2] } 31... Qd1+ { [%clk 0:08:47.2] } 0-1

[Event "Live Chess"]
[Site "Chess.com"]
[Date "2021.02.28"]
[Round "-"]
[White "Blackford, Ross"]
[Black "Robinson, Stephen"]
[Result "0-1"]
[BlackElo "1493"]
[CurrentPosition "6k1/2p4p/1q5P/K7/1r4p1/8/8/8 w - -"]
[ECO "B01"]
[ECOUrl "https://www.chess.com/openings/Scandinavian-Defense-Modern-Marshall-Gipslis-Variation-5.Be2"]
[EndDate "2021.02.28"]
[EndTime "11:56:44"]
[Link "https://www.chess.com/live/game/8249600149"]
[StartTime "11:08:12"]
[Termination "Stephenrobinson10 won by checkmate"]
[TimeControl "1500+10"]
[Timezone "UTC"]
[UTCDate "2021.02.28"]
[UTCTime "11:08:12"]
[WhiteElo "941"]

1. e4 { [%clk 0:25:10] } 1... d5 { [%clk 0:25:10] } 2. exd5 { [%clk 0:25:17.2] } 2... Nf6 { [%clk 0:25:17] } 3. d4 { [%clk 0:25:22.6] } 3... Nxd5 { [%clk 0:25:13.5] } 4. Nf3 { [%clk 0:25:29.4] } 4... Bg4 { [%clk 0:25:19.8] } 5. Be2 { [%clk 0:23:54.5] } 5... Nc6 { [%clk 0:24:36.3] } 6. c4 { [%clk 0:23:01.5] } 6... Nb6 { [%clk 0:23:29.1] } 7. Be3 { [%clk 0:22:12] } 7... e6 { [%clk 0:22:58.9] } 8. c5 { [%clk 0:16:38.9] } 8... Nd5 { [%clk 0:22:23.9] } 9. O-O { [%clk 0:16:45.5] } 9... Be7 { [%clk 0:21:59.9] } 10. Nc3 { [%clk 0:16:28.1] } 10... O-O { [%clk 0:21:56.8] } 11. Qb3 { [%clk 0:13:52.7] } 11... Rb8 { [%clk 0:20:39.3] } 12. Nxd5 { [%clk 0:13:47.1] } 12... exd5 { [%clk 0:20:19.5] } 13. h3 { [%clk 0:13:06.9] } 13... Bf5 { [%clk 0:19:50.6] } 14. Bd3 { [%clk 0:11:32.1] } 14... Be4 { [%clk 0:19:16.8] } 15. Nd2 { [%clk 0:10:42.2] } 15... b6 { [%clk 0:15:40] } 16. Bxe4 { [%clk 0:07:40.5] } 16... dxe4 { [%clk 0:15:37.8] } 17. Qa4 { [%clk 0:07:30.8] } 17... b5 { [%clk 0:14:42.2] } 18. Qc2 { [%clk 0:07:31.4] } 18... Nxd4 { [%clk 0:14:29.1] } 19. Bxd4 { [%clk 0:07:39.5] } 19... Qxd4 { [%clk 0:14:33.6] } 20. Nxe4 { [%clk 0:07:37.1] } 20... f5 { [%clk 0:14:23.7] } 21. Ng3 { [%clk 0:06:20.4] } 21... g6 { [%clk 0:13:26] } 22. Rac1 { [%clk 0:05:57.3] } 22... Bf6 { [%clk 0:12:39.1] } 23. b3 { [%clk 0:05:35.1] } 23... Rfe8 { [%clk 0:10:49.6] } 24. Rfd1 { [%clk 0:05:18.8] } 24... Qf4 { [%clk 0:10:01.2] } 25. Qd2 { [%clk 0:03:37.5] } 25... Qxd2 { [%clk 0:09:44.9] } 26. Rxd2 { [%clk 0:03:40.7] } 26... Bg5 { [%clk 0:09:53.1] } 27. Rcd1 { [%clk 0:03:34.2] } 27... Bxd2 { [%clk 0:09:58.1] } 28. Rxd2 { [%clk 0:03:43.2] } 28... Rbd8 { [%clk 0:09:59.1] } 29. Rxd8 { [%clk 0:03:34.6] } 29... Rxd8 { [%clk 0:10:06.5] } 30. a4 { [%clk 0:03:41.4] } 30... bxa4 { [%clk 0:10:06.1] } 31. bxa4 { [%clk 0:03:48.9] } 31... Rd4 { [%clk 0:10:13.9] } 32. Kf1 { [%clk 0:03:48.4] } 32... Rxa4 { [%clk 0:10:03.6] } 33. Ke2 { [%clk 0:03:56.2] } 33... Rc4 { [%clk 0:10:10.5] } 34. Kd3 { [%clk 0:04:02.6] } 34... Rxc5 { [%clk 0:10:18.5] } 35. f4 { [%clk 0:04:10.4] } 35... a5 { [%clk 0:10:24.8] } 36. h4 { [%clk 0:04:19.6] } 36... a4 { [%clk 0:10:33.1] } 37. h5 { [%clk 0:04:28.8] } 37... a3 { [%clk 0:10:39.3] } 38. h6 { [%clk 0:04:37.8] } 38... a2 { [%clk 0:10:46.2] } 39. Nxf5 { [%clk 0:04:44] } 39... gxf5 { [%clk 0:10:51.2] } 40. g4 { [%clk 0:04:52.3] } 40... fxg4 { [%clk 0:10:56.1] } 41. f5 { [%clk 0:05:01.3] } 41... a1=Q { [%clk 0:11:02.5] } 42. f6 { [%clk 0:05:10.5] } 42... Qxf6 { [%clk 0:11:04] } 43. Ke4 { [%clk 0:05:17.4] } 43... Rc4+ { [%clk 0:11:11.6] } 44. Kd5 { [%clk 0:05:24.2] } 44... Rd4+ { [%clk 0:11:19.1] } 45. Kc5 { [%clk 0:05:30.5] } 45... Qd6+ { [%clk 0:11:27.5] } 46. Kb5 { [%clk 0:05:38.9] } 46... Rb4+ { [%clk 0:11:36] } 47. Ka5 { [%clk 0:05:48.1] } 47... Qb6# { [%clk 0:11:44.2] } 0-1

[Event "Live Chess"]
[Site "Chess.com"]
[Date "2021.02.28"]
[Round "-"]
[White "McLaggan, J Iain"]
[Black "Robertson, Callum"]
[Result "1-0"]
[BlackElo "1466"]
[CurrentPosition "8/5k1p/8/p1N1R3/8/1P1P4/1P4PP/6K1 b - -"]
[ECO "B33"]
[ECOUrl "https://www.chess.com/openings/Sicilian-Defense-Open-3...cxd4-4.Nxd4-Nf6"]
[EndDate "2021.02.28"]
[EndTime "11:52:45"]
[Link "https://www.chess.com/live/game/8249620491"]
[StartTime "11:09:36"]
[Termination "iainmclaggan won by resignation"]
[TimeControl "1500+10"]
[Timezone "UTC"]
[UTCDate "2021.02.28"]
[UTCTime "11:09:36"]
[WhiteElo "1750"]

1. e4 { [%clk 0:25:10] } 1... c5 { [%clk 0:25:10] } 2. Nf3 { [%clk 0:25:08.5] } 2... Nc6 { [%clk 0:25:14.7] } 3. d4 { [%clk 0:25:06] } 3... cxd4 { [%clk 0:25:20.8] } 4. Nxd4 { [%clk 0:25:06.4] } 4... Nf6 { [%clk 0:25:24.7] } 5. Nxc6 { [%clk 0:24:46.7] } 5... bxc6 { [%clk 0:25:26.1] } 6. Nc3 { [%clk 0:24:47.2] } 6... d6 { [%clk 0:24:31.6] } 7. Bc4 { [%clk 0:24:20.7] } 7... e5 { [%clk 0:23:36.8] } 8. Be3 { [%clk 0:22:55.2] } 8... Be7 { [%clk 0:22:33.8] } 9. O-O { [%clk 0:22:12.5] } 9... O-O { [%clk 0:22:30.1] } 10. Qd3 { [%clk 0:21:44.8] } 10... Bb7 { [%clk 0:21:39] } 11. Rad1 { [%clk 0:21:02.8] } 11... Qd7 { [%clk 0:20:46.9] } 12. Bb3 { [%clk 0:19:36.6] } 12... Rfd8 { [%clk 0:19:31] } 13. f4 { [%clk 0:18:40] } 13... d5 { [%clk 0:13:12.3] } 14. fxe5 { [%clk 0:17:49] } 14... dxe4 { [%clk 0:12:06.3] } 15. Qxd7 { [%clk 0:17:27.6] } 15... Nxd7 { [%clk 0:11:53.5] } 16. Rxf7 { [%clk 0:16:52.7] } 16... Nc5 { [%clk 0:10:48] } 17. Rxe7+ { [%clk 0:15:35.5] } 17... Nxb3 { [%clk 0:10:40.6] } 18. Rxd8+ { [%clk 0:15:35.5] } 18... Rxd8 { [%clk 0:10:44.4] } 19. axb3 { [%clk 0:15:34] } 19... Bc8 { [%clk 0:09:24.6] } 20. e6 { [%clk 0:14:26.7] } 20... Rf8 { [%clk 0:08:40] } 21. Bd4 { [%clk 0:14:08.3] } 21... c5 { [%clk 0:06:58.4] } 22. Rxg7+ { [%clk 0:13:50.3] } 22... Kh8 { [%clk 0:07:05.3] } 23. Rf7+ { [%clk 0:13:10.5] } 23... cxd4 { [%clk 0:05:48.8] } 24. Rxf8+ { [%clk 0:13:11.8] } 24... Kg7 { [%clk 0:05:56.3] } 25. e7 { [%clk 0:13:05.7] } 25... Bd7 { [%clk 0:04:56.2] } 26. Nxe4 { [%clk 0:13:06.8] } 26... d3 { [%clk 0:04:34.5] } 27. cxd3 { [%clk 0:13:01.5] } 27... a5 { [%clk 0:04:24.9] } 28. Nc5 { [%clk 0:12:44.6] } 28... Bc6 { [%clk 0:04:19.3] } 29. e8=Q { [%clk 0:12:44.7] } 29... Bxe8 { [%clk 0:04:24] } 30. Rxe8 { [%clk 0:12:52.4] } 30... Kf7 { [%clk 0:04:30.4] } 31. Re5 { [%clk 0:12:46.4] } 1-0